bitfinex-derivatives/quotes_SOLF0:USTF0_20251107
["timestamp","ask_amount","ask_price","bid_price","bid_amount"]
[1762481647880,0.0475779,157.12,157.09,1.61]
[1762481650076,0.0475779,157.12,157.09,7.3419]
[1762481650286,0.0475779,157.12,157.1,1.61]
[1762481651184,0.0475779,157.12,157.11,1.6]
[1762481651587,3.22,157.19,157.11,1.6]
[1762481652085,3.22,157.23,157.14,1.6]
[1762481652288,4.54478238,157.22,157.14,1.6]
[1762481652484,0.04598522,157.2,157.16,0.04516406]
[1762481652686,3.26598522,157.2,157.16,0.04516406]
[1762481654290,3.22,157.18,157.16,0.04516406]
[1762481654590,3.22,157.17,157.16,0.04516406]
[1762481654780,7.76478238,157.17,157.16,0.04516406]
[1762481655994,3.22,157.17,157.16,0.04516406]
[1762481656287,3.22,157.17,157.05,55.58]
[1762481656288,3.22,157.16,157.05,4.2900468]
[1762481656589,3.22,157.14,157.03,1.6]
[1762481656788,3.22,157.12,157.03,1.6]
[1762481657296,0.04345776,157.09,157.06,0.04380619]
[1762481657493,3.26345776,157.09,157.06,0.04380619]
[1762481657789,3.22,157.07,157.06,0.04380619]
[1762481657994,3.22,157.03,156.94,1.6]
[1762481658195,3.22,157.01,156.9,1.6]
[1762481658496,3.22,156.99,156.9,1.6]
[1762481658686,3.22,156.97,156.86,1.6]
[1762481658886,3.22,156.95,156.86,1.6]
[1762481659191,3.22,156.92,156.83,1.6]
[1762481659886,8.9585,156.92,156.83,1.6]
[1762481660086,3.22,156.9,156.83,1.6]
[1762481660300,0.04155215,156.88,156.85,0.04268425]
[1762481661092,0.04155215,156.88,156.85,1.64268425]
[1762481661297,0.04155215,156.88,156.85,0.04268425]
[1762481661898,0.04155215,156.88,156.85,1.64268425]
[1762481663593,3.22,156.98,156.87,1.6]
[1762481663898,3.22,156.96,156.87,1.6]
[1762481664490,0.04031779,156.93,156.9,0.04346085]
[1762481666506,0.04031779,156.93,156.9,1.64346085]
[1762481667298,3.26031779,156.93,156.9,0.04346085]
[1762481667607,0.04031779,156.93,156.9,1.64346085]
[1762481668008,0.04031779,156.93,156.9,0.04346085]
[1762481669404,3.26031779,156.93,156.9,0.04346085]
[1762481669613,0.04031779,156.93,156.9,1.64346085]
[1762481670493,0.04031779,156.93,156.91,1.6]
[1762481671304,0.04031779,156.93,156.9,5.78256085]
[1762481671604,0.04031779,156.93,156.9,0.04346085]
[1762481674005,0.04031779,156.93,156.9,1.64346085]
[1762481674517,0.04031779,156.93,156.92,1.6]
[1762481675710,3.22,157.0,156.93,7.3378]
[1762481677015,0.04303935,156.98,156.95,1.64318883]
[1762481677816,0.04303935,156.98,156.95,0.04318883]
[1762481678119,3.13303935,156.98,156.95,0.04318883]
[1762481678614,0.04303935,156.98,156.95,0.04318883]
[1762481678918,0.04303935,156.98,156.95,1.65318883]
[1762481680219,0.04303935,156.98,156.96,1.61]
[1762481681717,0.04303935,156.98,156.96,7.3467]
[1762481684114,0.04303935,156.98,156.95,0.04318883]
[1762481684322,2.95303935,156.98,156.95,0.04318883]
[1762481684928,3.17,156.96,156.86,1.61]
[1762481685928,0.04083926,156.93,156.89,0.04742457]
[1762481686326,3.21083926,156.93,156.89,0.04742457]
[1762481687922,0.04083926,156.93,156.9,1.61]
[1762481689416,0.04083926,156.93,156.91,1.61]
[1762481690018,3.21083926,156.93,156.89,1.65742457]
[1762481690217,3.21083926,156.93,156.89,0.04742457]
[1762481693026,4.54202754,157.01,156.9,8.58272715]
[1762481693328,19.551405,157.11,156.9,8.58272715]
[1762481693329,3.17,157.04,156.92,1.57]
[1762481694032,3.17,157.03,156.92,1.57]
[1762481694226,0.04815688,156.99,156.96,0.04817523]
[1762481694925,3.21815688,156.99,156.96,0.04817523]
[1762481697529,3.17,156.98,156.96,0.04817523]
[1762481698334,3.17,156.97,156.96,0.04817523]
[1762481699136,3.17,156.96,156.88,1.57]
[1762481699334,3.17,156.94,156.88,1.57]
[1762481699926,3.21605661,156.93,156.89,0.0440252]
[1762481700132,3.21360958,156.93,156.89,0.04643698]
[1762481700327,0.04360958,156.93,156.89,1.61643698]
[1762481700835,0.04360958,156.93,156.91,1.57]
[1762481701025,7.30272715,157.05,156.91,1.57]
[1762481701026,4.58142955,156.99,156.91,1.57]
[1762481701228,3.17,157.07,156.99,1.57]
[1762481701428,4.58444574,157.06,156.99,1.57]
[1762481701630,4.58444574,157.05,156.99,1.57]
[1762481701826,3.17,157.11,156.99,1.57]
[1762481702035,110.59295247,157.12,156.99,1.57]
[1762481702036,3.17,157.09,156.99,1.57]
[1762481702237,4.58298183,157.1,156.99,1.57]
[1762481702238,3.21355998,157.07,157.03,0.04746009]
[1762481702439,3.17,157.05,157.03,0.04746009]
[1762481702735,4.58298183,157.04,157.03,0.04746009]
[1762481703037,7.75298183,157.04,157.03,0.04746009]
[1762481703237,7.75298183,157.04,156.97,5.7363]
[1762481703437,4.58298183,157.03,156.97,5.7363]
[1762481703634,4.58298183,157.02,156.97,7.3063]
[1762481703841,3.17,157.04,156.97,7.3063]
[1762481704038,4.57786568,157.03,156.97,7.3063]
[1762481704234,4.62199222,157.02,156.98,0.04240992]
[1762481704541,4.57803017,157.01,156.98,0.04240992]
[1762481704738,3.21412654,157.02,156.98,0.04240992]
[1762481704946,4.57810521,157.01,156.98,0.04240992]
[1762481705238,3.21412654,157.02,156.98,0.04240992]
[1762481705437,4.57920224,157.01,156.98,0.04240992]
[1762481705632,3.21412654,157.02,156.98,0.04240992]
[1762481705834,4.57920286,157.01,156.98,0.04240992]
[1762481706140,3.21412654,157.02,156.98,0.04240992]
[1762481706342,4.58013725,157.01,156.98,0.04240992]
[1762481706545,3.21412654,157.02,156.98,0.04240992]
[1762481706733,4.57974312,157.01,156.98,0.04240992]
[1762481706932,3.21412654,157.02,156.98,0.04240992]
[1762481707133,4.57978035,157.01,156.98,0.04240992]
[1762481707344,3.21412654,157.02,156.98,0.04240992]
[1762481707535,4.58026257,157.01,156.98,0.04240992]
[1762481707841,4.58026257,157.0,156.98,0.04240992]
[1762481708141,3.21412654,157.02,156.98,0.04240992]
[1762481708333,4.581397,157.01,156.98,0.04240992]
[1762481708533,4.581397,157.0,156.98,0.04240992]
[1762481708731,0.04412654,157.02,156.98,1.61240992]
[1762481708942,3.21412654,157.02,156.98,0.04240992]
[1762481709144,4.58139191,157.01,156.98,0.04240992]
[1762481709333,3.21412654,157.02,156.98,0.04240992]
[1762481710044,3.17,157.0,156.98,0.04240992]
[1762481710344,3.17,156.98,156.92,5.7382]
[1762481710532,71.41247345,157.07,156.9,1.57]
[1762481710732,2.95,157.05,156.9,1.57]
[1762481710941,2.95,157.03,156.9,1.57]
[1762481711139,2.95,157.01,156.95,0.04330639]
[1762481711337,2.95,156.98,156.9,1.57]
[1762481711743,0.04152065,156.96,156.92,1.61173629]
[1762481712045,0.04152065,156.96,156.93,5.7378]
[1762481712944,0.04152065,156.96,156.92,1.61173629]
[1762481713939,0.04152065,156.96,156.93,5.7378]
[1762481714742,0.04152065,156.96,156.94,1.57]
[1762481715046,2.95,157.0,156.94,1.57]
[1762481715047,4.52203531,157.06,156.96,1.57]
[1762481715246,2.95,157.11,157.0,1.57]
[1762481715457,2.95,157.09,157.0,1.57]
[1762481715942,0.04868748,157.06,157.03,0.04230343]
[1762481716339,0.04868748,157.06,157.03,5.77650343]
[1762481716540,0.04868748,157.06,157.03,1.61230343]
[1762481716736,0.00033812,157.06,157.04,5.7338]
[1762481717034,2.95,157.15,157.06,1.57]
[1762481717439,2.95,157.15,157.1,5.7316]
[1762481718041,13.23643876,157.23,157.11,0.04387177]
[1762481718042,2.95,157.12,157.11,0.04387177]
[1762481718243,2.95,157.12,157.1,0.04380453]
[1762481719246,4.23,157.12,157.1,0.04380453]
[1762481719548,2.95,157.12,157.1,0.04380453]
[1762481719750,2.95,157.11,157.04,65.54]
[1762481720738,2.95,157.11,157.05,5.7334]
[1762481720944,0.0468103,157.09,157.06,0.04552011]
[1762481721344,2.9968103,157.09,157.06,0.04552011]
[1762481724245,0.0468103,157.09,157.06,0.04552011]
[1762481724650,2.9968103,157.09,157.06,0.04552011]
[1762481725147,0.0468103,157.09,157.06,0.04552011]
[1762481725740,0.0468103,157.09,157.06,1.61552011]
[1762481727248,2.9968103,157.09,157.06,0.04552011]
[1762481727448,0.0468103,157.09,157.06,0.04552011]
[1762481729250,2.9968103,157.09,157.06,0.04552011]
[1762481732962,2.95,157.07,157.06,0.04552011]
[1762481734251,2.95,157.07,156.99,4.28046581]
[1762481734450,2.95,157.06,156.96,4.28046581]
[1762481734851,2.95,157.02,156.93,5.89046581]
[1762481735056,2.95,157.02,156.9,5.89046581]
[1762481735360,0.04109997,156.98,156.94,0.04052854]
[1762481735560,2.95,156.97,156.94,0.04052854]
[1762481736948,0.04109997,156.98,156.86,5.89046581]
[1762481736949,2.95,156.95,156.86,5.89046581]
[1762481737151,2.95,156.95,156.87,1.65]
[1762481737562,2.95,156.95,156.86,4.28046581]
[1762481737862,2.95,156.95,156.83,5.93046581]
[1762481738063,2.94,156.9,156.87,0.04225578]
[1762481738257,2.98606222,156.9,156.87,0.04052191]
[1762481742161,0.04606222,156.9,156.87,1.69052191]
[1762481742558,0.00172915,156.9,156.88,5.7396]
[1762481742863,3.06,157.07,156.9,1.65]
[1762481743256,3.06,157.01,156.92,5.7383]
[1762481743656,0.04046601,156.98,156.95,0.04629187]
[1762481743868,3.10046601,156.98,156.95,0.04629187]
[1762481747160,0.04046601,156.98,156.95,0.04629187]
[1762481748169,0.04046601,156.98,156.95,1.69629187]
[1762481748370,3.10046601,156.98,156.95,0.04629187]
[1762481749370,0.04046601,156.98,156.95,0.04629187]
[1762481749665,3.10046601,156.98,156.95,0.04629187]
[1762481749976,0.04046601,156.98,156.95,1.69629187]
[1762481750270,3.10046601,156.98,156.95,0.04629187]
[1762481759382,0.04046601,156.98,156.95,1.69629187]
[1762481759589,3.10046601,156.98,156.95,0.04629187]
[1762481760387,0.04046601,156.98,156.96,5.7368]
[1762481760694,0.04046601,156.98,156.96,7.3868]
[1762481760895,0.04046601,156.98,156.96,5.7368]
[1762481761097,3.10046601,156.98,156.95,0.04629187]
[1762481763293,3.10046601,156.98,156.95,1.69629187]
[1762481763294,0.04046601,156.98,156.95,1.69629187]
[1762481763593,3.06,157.05,156.97,4.28046581]
[1762481763796,3.06,157.05,157.01,5.735]
[1762481763987,3.06,157.05,156.98,1.65]
[1762481764187,8.7939,157.05,156.98,7.3861]
[1762481764498,3.10374926,157.03,157.0,0.04037852]
[1762481765696,3.06,157.02,156.89,5.97046581]
[1762481765998,3.06,157.02,156.9,1.69]
[1762481766201,3.06,156.98,156.9,1.69]
[1762481766500,3.06,156.95,156.92,0.0479985]
[1762481766700,0.04086551,156.95,156.92,0.04308426]
[1762481766901,0.04086551,156.95,156.92,1.73308426]
[1762481767100,0.04086551,156.95,156.92,7.47138426]
[1762481767299,0.04086551,156.95,156.92,5.78138426]
[1762481767597,0.04086551,156.95,156.92,0.04308426]
[1762481767799,3.10086551,156.95,156.92,0.04308426]
[1762481768897,0.04086551,156.95,156.92,0.04308426]
[1762481769098,0.04086551,156.95,156.92,1.73308426]
[1762481769697,3.06,157.06,156.94,1.69]
[1762481769901,3.06,157.06,156.96,5.97046581]
[1762481770095,5.7339,157.05,156.99,5.7357]
[1762481770295,3.06,157.06,156.99,5.7357]
[1762481770601,3.12773081,157.04,157.01,0.04202507]
[1762481770800,3.12773081,157.04,157.01,0.0452568]
[1762481770801,0.04172731,157.04,157.01,0.0452568]
[1762481771196,3.12172731,157.04,157.01,0.0452568]
[1762481774298,0.04172731,157.04,157.01,1.7352568]
[1762481775406,3.12172731,157.04,157.01,0.0452568]
[1762481775808,8.85592731,157.04,157.01,0.0452568]
[1762481776102,0.04172731,157.04,157.01,0.0452568]
[1762481776405,3.12172731,157.04,157.01,0.0452568]
[1762481776608,0.04172731,157.04,157.01,1.7352568]
[1762481777301,0.04172731,157.04,157.01,5.7802568]
[1762481777806,0.04172731,157.04,157.01,0.0452568]
[1762481778008,3.12172731,157.04,157.01,0.0452568]
[1762481778802,8.85602731,157.04,157.01,0.0452568]
[1762481778999,3.08,157.03,157.01,0.0452568]
[1762481780011,3.08,157.02,157.01,0.0452568]
[1762481780208,3.08,157.02,156.94,7.4277]
[1762481780908,5.7354,157.01,156.95,5.7372]
[1762481781101,3.12211839,157.0,156.96,0.04876012]
[1762481781706,0.04211839,157.0,156.97,1.74]
[1762481782312,0.04211839,157.0,156.96,0.04876012]
[1762481782613,3.08,156.98,156.96,0.04876012]
[1762481783007,3.08,156.98,156.86,1.74]
[1762481784008,3.08,156.93,156.9,0.04873607]
[1762481784315,0.04478212,156.94,156.9,0.04021567]
[1762481784509,3.12478212,156.94,156.9,0.04021567]
[1762481785116,3.08,156.92,156.9,0.04021567]
[1762481786714,3.08,156.91,156.83,12.22]
[1762481787512,3.08,156.89,156.83,10.48]
[1762481787814,3.08,156.89,156.79,17.77655154]
[1762481787815,3.08,156.87,156.84,0.04689477]
[1762481788113,3.08,156.85,156.84,0.04049781]
[1762481788310,3.08,156.85,156.72,7.85705366]
[1762481788511,3.08,156.85,156.72,1.74]
[1762481788916,3.08,156.83,156.73,7.485]
[1762481789309,0.04140059,156.8,156.76,0.02536763]
[1762481789512,3.12140059,156.8,156.76,0.02536763]
[1762481790421,0.04140059,156.8,156.76,1.76536763]
[1762481791218,0.04140059,156.8,156.76,7.50936763]
[1762481791816,0.04140059,156.8,156.76,1.76536763]
[1762481792017,3.12140059,156.8,156.76,0.02536763]
[1762481792716,0.04140059,156.8,156.76,1.76536763]
[1762481793515,3.12140059,156.8,156.76,1.76536763]
[1762481793822,0.04140059,156.8,156.76,1.76536763]
[1762481795421,3.12140059,156.8,156.76,0.02536763]
[1762481796913,5.7433,156.79,156.76,0.02536763]
[1762481797114,3.08,156.78,156.76,0.02536763]
[1762481797513,3.08,156.78,156.69,1.74]
[1762481797713,3.08,156.76,156.69,1.74]
[1762481798516,0.04644391,156.74,156.67,1.74]
[1762481798718,2.92,156.84,156.71,1.74]
[1762481798917,2.92,156.84,156.75,5.7446]
[1762481799316,2.92,156.84,156.74,1.74]
[1762481799621,2.92,156.89,156.75,1.74]
[1762481799821,0.04761408,156.84,156.8,1.78375926]
[1762481800026,0.04761408,156.84,156.81,7.4822]
[1762481801121,0.04761408,156.84,156.81,1.74]
[1762481801316,3.22761408,156.84,156.8,0.04375926]
[1762481801818,3.18,156.82,156.8,0.04375926]
[1762481803624,3.22761408,156.84,156.8,0.04375926]
[1762481804125,0.04761408,156.84,156.8,1.78375926]
[1762481804316,3.22761408,156.84,156.8,0.04375926]
[1762481806626,3.18,156.82,156.8,0.04375926]
[1762481806824,3.22761408,156.84,156.8,0.04375926]
[1762481807727,0.04761408,156.84,156.8,1.78375926]
[1762481807914,0.04761408,156.84,156.8,0.04375926]
[1762481807915,3.22761408,156.84,156.8,0.04375926]
[1762481809318,0.04761408,156.84,156.8,1.78375926]
[1762481811329,0.04761408,156.84,156.82,1.74]
[1762481811830,0.04761408,156.84,156.81,1.74]
[1762481813927,0.04761408,156.84,156.81,7.4823]
[1762481814237,0.04761408,156.84,156.82,1.74]
[1762481814735,0.04761408,156.84,156.83,1.74]
[1762481815330,0.04761408,156.84,156.81,1.74]
[1762481816233,3.22761408,156.84,156.8,0.04375926]
[1762481816629,3.18,156.81,156.8,0.04375926]
[1762481817026,3.18,156.81,156.73,9.05578604]
[1762481817233,3.18,156.81,156.7,55.06]
[1762481818130,0.04512672,156.77,156.7,55.06]
[1762481818336,0.04512672,156.77,156.71,5.7458]
[1762481819530,0.04512672,156.77,156.7,55.06]
[1762481819931,0.04512672,156.77,156.73,1.74]
[1762481820734,3.22512672,156.77,156.7,55.06]
[1762481821040,8.96922672,156.77,156.7,55.06]
[1762481821430,0.04512672,156.77,156.71,1.74]
[1762481821939,0.04512672,156.77,156.73,1.74]
[1762481822529,3.22512672,156.77,156.69,1.74]
[1762481822734,3.18,156.73,156.65,1.74]
[1762481822934,3.22300727,156.71,156.62,207.07845274]
[1762481823143,3.22300727,156.71,156.62,201.5026667]
[1762481824027,5.7465,156.7,156.62,201.5026667]
[1762481824235,0.04480827,156.68,156.62,1.74]
[1762481824738,0.04480827,156.68,156.62,7.4891]
[1762481824939,0.04480827,156.68,156.63,1.74]
[1762481825634,3.22480827,156.68,156.61,65.54]
[1762481825833,0.04480827,156.68,156.62,1.74]
[1762481827538,0.04480827,156.68,156.67,1.74]
[1762481830548,3.1,156.77,156.67,1.74]
[1762481830737,3.1,156.77,156.65,65.56]
[1762481830738,3.1,156.77,156.69,1.73]
[1762481831240,7.83426708,156.84,156.69,7.4768]
[1762481831241,3.1,156.78,156.69,7.4768]
[1762481831537,3.1,156.74,156.72,0.04428495]
[1762481832337,0.04272306,156.75,156.72,0.04428495]
[1762481833441,0.04272306,156.75,156.72,1.77428495]
[1762481835047,0.04272306,156.75,156.73,7.4751]
[1762481835743,5.87416881,156.87,156.73,7.4751]
[1762481835744,3.1,156.83,156.78,7.4735]
[1762481836136,3.1,156.83,156.75,1.73]
[1762481836539,3.1,156.83,156.77,5.7436]
[1762481836740,0.04275761,156.82,156.78,1.77210478]
[1762481837253,0.04275761,156.82,156.81,1.73]
[1762481837550,3.1,156.91,156.81,1.73]
[1762481838455,3.14474491,156.88,156.84,0.04880878]
[1762481838944,0.04474491,156.88,156.84,1.77880878]
[1762481839853,3.14474491,156.88,156.84,0.04880878]
[1762481841045,0.04474491,156.88,156.84,7.51990878]
[1762481841748,3.14474491,156.88,156.84,0.04880878]
[1762481843354,3.1,156.86,156.84,0.04880878]
[1762481846051,0.04474491,156.88,156.84,0.04880878]
[1762481846256,3.14474491,156.88,156.84,0.04880878]
[1762481848755,8.88484491,156.88,156.84,0.04880878]
[1762481848957,3.1,156.87,156.84,0.04880878]
[1762481849376,3.1,156.85,156.84,0.04880878]
[1762481849857,3.1,156.87,156.84,0.04880878]
[1762481850252,3.14474491,156.88,156.84,0.04880878]
[1762481851348,0.04474491,156.88,156.84,1.77880878]
[1762481851955,0.04474491,156.88,156.86,7.4704]
[1762481852460,0.04474491,156.88,156.87,1.73]
[1762481853254,8.8371,156.96,156.88,1.73]
[1762481853557,3.1,156.96,156.88,1.73]
[1762481854160,3.1,157.02,156.9,6.02001393]
[1762481854357,3.1,156.97,156.94,0.0479204]
[1762481854660,3.14421279,156.97,156.94,0.04526671]
[1762481855156,0.04421279,156.97,156.94,0.04526671]
[1762481855452,0.04421279,156.97,156.94,1.77526671]
[1762481855757,3.1,157.03,156.96,1.73]
[1762481855958,4.29001393,157.12,156.96,1.73]
[1762481855959,3.1,157.06,156.97,1.73]
[1762481856561,3.1,157.06,156.99,5.7356]
[1762481856760,0.04051517,157.03,157.0,1.77383232]
[1762481857154,0.04051517,157.03,157.0,7.50913232]
[1762481857354,0.04051517,157.03,157.01,1.73]
[1762481858262,0.04051517,157.03,157.02,1.74]
[1762481858459,3.17,157.1,157.02,1.74]
[1762481858958,3.17,157.1,157.03,5.7341]
[1762481859360,0.04896817,157.08,157.05,0.04859083]
[1762481859559,3.21896817,157.08,157.05,0.04859083]
[1762481860060,3.17,157.07,157.05,0.04859083]
[1762481860257,3.17,157.07,156.95,1.74]
[1762481860666,8.8136,157.06,156.96,7.4769]
[1762481860859,3.08,157.05,156.96,7.4769]
[1762481861263,0.04554762,157.02,156.99,0.04657447]
[1762481862666,0.04554762,157.02,156.99,1.78657447]
[1762481862862,0.04554762,157.02,156.99,3.06657447]
[1762481863066,0.04554762,157.02,157.0,1.74]
[1762481864069,0.04554762,157.02,157.0,7.4752]
[1762481864269,0.04554762,157.02,157.01,1.74]
[1762481865871,3.08,157.12,157.03,1.74]
[1762481866671,3.08,157.12,157.07,7.4726]
[1762481866869,0.04184646,157.09,157.05,1.7832297]
[1762481867870,3.12184646,157.09,157.05,0.0432297]
[1762481868975,8.85434646,157.09,157.05,0.0432297]
[1762481869180,3.08,157.08,157.05,0.0432297]
[1762481869473,3.08,157.06,157.05,0.0432297]
[1762481870372,4.36,157.06,157.05,0.0432297]
[1762481870572,3.08,157.04,156.97,1.74]
[1762481870773,3.08,157.04,156.95,1.74]
[1762481871475,3.08,157.0,156.98,0.04184948]
[1762481871673,3.08,157.0,156.97,0.04706513]
[1762481872369,3.08,156.99,156.91,1.74]
[1762481872572,3.08,156.98,156.91,1.74]
[1762481873170,3.08,156.98,156.89,259.575491]
[1762481873481,0.04456887,156.95,156.92,0.04475314]
[1762481875572,0.04456887,156.95,156.92,1.78475314]
[1762481875772,0.04456887,156.95,156.92,0.04475314]
[1762481875968,0.04456887,156.95,156.92,1.78475314]
[1762481876469,3.08,157.0,156.94,7.4777]
[1762481877075,3.08,157.0,156.94,1.74]
[1762481877669,0.0413581,156.99,156.95,1.78380514]
[1762481878375,0.0413581,156.99,156.96,1.74]
[1762481879581,0.0413581,156.99,156.95,0.04380514]
[1762481879582,3.08,157.08,156.98,1.74]
[1762481879983,3.08,157.08,157.0,5.7353]
[1762481880682,3.12706604,157.06,157.02,0.04241672]
[1762481881680,3.08,157.03,157.02,0.04241672]
[1762481882382,3.08,157.03,156.96,1.74]
[1762481882579,3.08,157.03,156.93,53.82]
[1762481883083,3.08,156.98,156.93,53.82]
[1762481883376,0.04343676,156.97,156.94,0.04126086]
[1762481883783,3.12343676,156.97,156.94,0.04126086]
[1762481884678,3.08,156.95,156.94,0.04126086]
[1762481884987,3.08,156.95,156.86,97.81001393]
[1762481885185,3.08,157.01,156.89,7.4793]
[1762481885485,8.8163,156.98,156.89,1.74]
[1762481885877,0.04250886,156.95,156.92,0.04737601]
[1762481886077,0.04250886,156.95,156.92,1.78737601]
[1762481886784,3.12250886,156.95,156.92,0.04737601]
[1762481886987,0.04250886,156.95,156.92,1.78737601]
[1762481887387,0.04250886,156.95,156.93,7.4778]
[1762481887986,0.04250886,156.95,156.92,1.78737601]
[1762481888782,0.04250886,156.95,156.92,7.52567601]
[1762481890388,0.04250886,156.95,156.93,7.4778]
[1762481890790,0.04250886,156.95,156.94,1.74]
[1762481891083,2.96,157.03,156.94,1.74]
[1762481891782,2.96,157.03,156.96,5.7367]
[1762481891986,0.04618627,157.01,156.98,0.04775073]
[1762481892180,3.00618627,157.01,156.98,0.04775073]
[1762481893083,2.96,157.0,156.98,0.04775073]
[1762481893788,2.96,156.99,156.98,0.04775073]
[1762481893983,2.96,156.99,156.9,1.74]
[1762481894891,0.04904073,156.96,156.93,0.04107804]
[1762481895290,3.00904073,156.96,156.93,0.04107804]
[1762481896587,0.04904073,156.96,156.93,1.78107804]
[1762481897685,2.96,157.04,156.95,1.74]
[1762481897994,2.96,157.04,156.98,1.74]
[1762481898184,2.96,157.04,156.97,4.29001393]
[1762481898390,2.96,157.04,156.95,71.197]
[1762481898590,2.96,157.04,156.95,65.46]
[1762481898895,2.96,157.0,156.98,0.04493127]
[1762481899094,2.96,157.0,156.91,4.29001393]
[1762481899095,2.96,156.98,156.97,0.04376748]
[1762481899396,2.96,156.98,156.86,199.12792666]
[1762481899592,2.96,156.9,156.84,1.74]
[1762481899988,2.96,156.9,156.81,65.46]
[1762481900193,3.00811737,156.87,156.84,0.04372414]
[1762481900496,3.00734352,156.87,156.84,0.04831024]
[1762481903200,2.96,156.86,156.76,1.74]
[1762481903996,2.96,156.84,156.76,7.4842]
[1762481904191,2.96,156.81,156.78,0.04294546]
[1762481904500,3.00889453,156.81,156.78,0.04174251]
[1762481904701,3.00889453,156.81,156.72,1.74]
[1762481904896,2.96,156.81,156.72,1.74]
[1762481905290,2.96,156.85,156.72,1.74]
[1762481905497,2.96,156.85,156.74,6.03001393]
[1762481905695,0.04166692,156.81,156.79,1.74]
[1762481906007,0.04166692,156.81,156.78,0.04480691]
[1762481906311,0.04166692,156.81,156.78,1.78480691]
[1762481908015,0.04166692,156.81,156.78,3.06480691]
[1762481908211,4.29001393,156.93,156.78,0.04480691]
[1762481908212,2.96,156.88,156.78,0.04480691]
[1762481908508,2.96,156.88,156.78,5.7433]
[1762481908509,2.96,156.87,156.78,5.7433]
[1762481908714,2.96,156.87,156.78,1.74]
[1762481909214,0.04083636,156.84,156.81,0.04446682]
[1762481909913,0.04083636,156.84,156.81,1.78446682]
[1762481911204,0.04083636,156.84,156.82,5.7421]
[1762481911513,2.96,156.91,156.83,6.03001393]
[1762481911914,2.96,156.9,156.81,4.29001393]
[1762481912414,2.96,156.9,156.81,11.77211393]
[1762481912615,0.04493219,156.87,156.84,0.04085546]
[1762481913515,3.00493219,156.87,156.84,0.04085546]
[1762481914513,0.04493219,156.87,156.86,1.74]
[1762481914823,0.04493219,156.87,156.84,1.78085546]
[1762481915118,0.04493219,156.87,156.85,5.7407]
[1762481916414,3.00493219,156.87,156.84,0.04085546]
[1762481920117,0.04493219,156.87,156.84,1.78085546]
[1762481921321,5.7377,156.94,156.87,1.74]
[1762481921322,2.95,156.94,156.87,1.74]
[1762481921519,2.95,156.94,156.89,7.4792]
[1762481921717,8.6864,156.98,156.89,1.74]
[1762481921923,2.95,156.97,156.89,1.74]
[1762481922223,2.99399221,156.95,156.91,5.78333755]
[1762481922618,0.04399221,156.95,156.92,5.7382]
[1762481922818,0.04399221,156.95,156.92,7.4782]
[1762481923623,0.04399221,156.95,156.91,0.04473755]
[1762481923624,2.99399221,156.95,156.91,0.04473755]
[1762481924515,2.99399221,156.95,156.92,1.74]
[1762481924516,0.04399221,156.95,156.92,1.74]
[1762481925224,0.04399221,156.95,156.94,1.74]
[1762481925425,8.6849,157.02,156.94,1.74]
[1762481925627,2.95,157.02,156.95,9.04732549]
[1762481926518,0.04682523,157.0,156.98,7.476]
[1762481927824,2.95,157.02,156.97,0.04410703]
[1762481927825,2.95,157.05,156.99,9.04732549]
[1762481928128,2.95,157.14,157.0,1.74]
[1762481928317,2.95,157.12,157.0,1.74]
[1762481928515,2.95,157.12,157.04,1.74]
[1762481929022,2.95,157.09,157.06,0.0469902]
[1762481929327,2.99346966,157.09,157.06,0.04400464]
[1762481929519,2.95,157.08,157.06,0.04400464]
[1762481930429,2.95,157.07,157.0,1.74]
[1762481931333,0.04685356,157.05,157.02,0.04384217]
[1762481931726,2.99685356,157.05,157.02,0.04384217]
[1762481932129,0.04685356,157.05,157.02,0.04384217]
[1762481933233,2.99685356,157.05,157.02,0.04384217]
[1762481933832,0.04685356,157.05,157.02,0.04384217]